fUSD/lending_fUSD_20250314
["ID","MTS","AMOUNT","RATE_DAILY","PERIOD"]
[356131831,1741936920087,-996.86,0.00022054,3]
[356131832,1741936920115,-500.0,0.00022054,3]
[356131833,1741936920144,-500.0,0.00022054,3]
[356131834,1741936920172,-1317.11,0.00022054,3]
[356131835,1741936920202,-500.0,0.00022054,3]
[356131836,1741936920231,-500.0,0.00022054,3]
[356131837,1741936920260,-1005.89,0.00022054,3]
[356131838,1741936920290,-500.0,0.00022054,3]
[356131839,1741936920319,-500.0,0.00022054,3]
[356131840,1741936920516,-500.0,0.00022054,3]
[356131841,1741936920547,-500.0,0.00022054,3]
[356131842,1741936920576,-500.0,0.00022054,3]
[356131843,1741936920606,-547.37,0.00022054,3]
[356131844,1741936920636,-500.0,0.00022054,3]
[356131845,1741936920665,-500.0,0.00022054,3]
[356131846,1741936920702,-527.11,0.00022054,3]
[356131847,1741936920736,-500.0,0.00022054,3]
[356131848,1741936920769,-500.0,0.00022054,3]
[356131849,1741936920799,-500.0,0.00022054,3]
[356131850,1741936920831,-500.0,0.00022054,3]
[356131851,1741936920859,-500.0,0.00022054,3]
[356131852,1741936920887,-500.0,0.00022054,3]
[356131853,1741936920915,-500.0,0.00022054,3]
[356131854,1741936920944,-669.94,0.00022054,3]
[356131855,1741936920972,-500.0,0.00022054,3]
[356131856,1741936921002,-500.0,0.00022054,3]
[356131857,1741936921032,-1385.58,0.00022054,3]
[356131858,1741936921061,-500.0,0.00022054,3]
[356131859,1741936921090,-500.0,0.00022054,3]
[356131860,1741936921118,-500.0,0.00022054,3]
[356131861,1741936921147,-500.0,0.00022054,3]
[356131862,1741936921175,-500.0,0.00022054,3]
[356131863,1741936921204,-500.0,0.00022054,3]
[356131864,1741936921234,-677.48,0.00022054,3]
[356131865,1741936921263,-500.0,0.00022054,3]
[356131866,1741936921293,-500.0,0.00022054,3]
[356131867,1741936921323,-517.91,0.00022054,3]
[356131868,1741936921354,-500.0,0.00022054,3]
[356131869,1741936921385,-797.96,0.00022054,3]
[356131870,1741936921418,-500.0,0.00022054,3]
[356131871,1741936921449,-536.18,0.00022054,3]
[356131872,1741936921480,-500.0,0.00022054,3]
[356131873,1741936921511,-500.0,0.00022054,3]
[356131874,1741936921542,-558.34,0.00022054,3]
[356131875,1741936921572,-500.0,0.00022054,3]
[356131876,1741936921603,-537.35,0.00022054,3]
[356131877,1741936921633,-500.0,0.00022054,3]
[356131878,1741936921664,-643.93,0.00022054,3]
[356131879,1741936921697,-500.0,0.00022054,3]
[356131880,1741936921728,-500.0,0.00022054,3]
[356131881,1741936921758,-500.0,0.00022054,3]
[356131882,1741936921790,-500.0,0.00022054,3]
[356131883,1741936921820,-500.0,0.00022054,3]
[356131884,1741936921851,-500.0,0.00022054,3]
[356131885,1741936921881,-500.0,0.00022054,3]
[356131886,1741936921913,-500.0,0.00022054,3]
[356131887,1741936921944,-534.15,0.00022054,3]
[356131888,1741936921975,-500.0,0.00022054,3]
[356131889,1741936922005,-849.01,0.00022054,3]
[356131890,1741936922037,-500.0,0.00022054,3]
[356131891,1741936922066,-500.0,0.00022054,2]
[356131892,1741936922098,-500.0,0.00022054,3]
[356131893,1741936922126,-500.0,0.00022054,3]
[356131894,1741936922155,-856.19,0.00022054,3]
[356131895,1741936922184,-1041.65,0.00022054,3]
[356131896,1741936922213,-500.0,0.00022054,3]
[356131897,1741936922243,-500.0,0.00022054,3]
[356131898,1741936922273,-983.66,0.00022054,3]
[356131899,1741936922303,-500.0,0.00022054,3]
[356131900,1741936922331,-500.0,0.00022054,3]
[356131901,1741936922361,-735.35,0.00022054,3]
[356131902,1741936922391,-666.51,0.00022054,3]
[356131903,1741936922420,-500.0,0.00022054,3]
[356131904,1741936922449,-500.0,0.00022054,3]
[356131905,1741936922478,-787.16,0.00022054,3]
[356131906,1741936922508,-1295.98,0.00022054,3]
[356131907,1741936922539,-500.0,0.00022054,3]
[356131908,1741936922570,-500.0,0.00022054,3]
[356131909,1741936922599,-1289.57,0.00022054,3]
[356131910,1741936922630,-1037.78,0.00022054,3]
[356131911,1741936922659,-1084.8,0.00022054,3]
[356131912,1741936922690,-500.0,0.00022054,3]
[356131913,1741936922718,-500.0,0.00022054,3]
[356131914,1741936922749,-713.92,0.00022054,3]
[356131915,1741936922780,-500.0,0.00022054,3]
[356131916,1741936922809,-500.0,0.00022054,3]
[356131917,1741936922840,-770.02,0.00022054,3]
[356131918,1741936922870,-500.0,0.00022054,3]
[356131919,1741936922906,-500.0,0.00022054,3]
[356131920,1741936922937,-500.0,0.00022054,3]
[356131921,1741936922966,-1013.77,0.00022054,3]
[356131922,1741936922996,-500.0,0.00022054,3]
[356131923,1741936923025,-500.0,0.00022054,3]
[356131924,1741936923058,-500.0,0.00022054,3]
[356131925,1741936923090,-500.0,0.00022054,3]
[356131926,1741936923123,-500.0,0.00022054,3]
[356131927,1741936923154,-746.99,0.00022054,3]
[356131928,1741936923185,-500.0,0.00022054,3]
[356131929,1741936923215,-500.0,0.00022054,3]
[356131930,1741936923246,-662.9,0.00022054,3]
[356131931,1741936923279,-500.0,0.00022054,3]
[356131932,1741936923312,-500.0,0.00022054,3]
[356131933,1741936923342,-772.07,0.00022054,3]
[356131934,1741936923372,-337.02322286,0.00022054,3]
[356131935,1741936923403,-500.0,0.00022054,3]
[356131936,1741936923433,-557.6,0.00022054,3]
[356131937,1741936923464,-916.26,0.00022054,3]
[356131938,1741936923495,-651.4,0.00022054,3]
[356131939,1741936923524,-500.0,0.00022054,3]
[356131940,1741936923553,-500.0,0.00022054,3]
[356131941,1741936923582,-500.0,0.00022054,3]
[356131942,1741936923612,-500.0,0.00022054,3]
[356131943,1741936923641,-500.0,0.00022054,3]
[356131944,1741936923672,-651.11,0.00022054,3]
[356131945,1741936923873,-500.0,0.00022054,3]
[356131946,1741936923902,-500.0,0.00022054,3]
[356131947,1741936923932,-1360.83,0.00022054,3]
[356131948,1741936923962,-500.0,0.00022054,3]
[356131949,1741936923992,-500.0,0.00022054,3]
[356131950,1741936924024,-500.0,0.00022054,3]
[356131951,1741936924055,-500.0,0.00022054,3]
[356131952,1741936924086,-500.0,0.00022054,3]
[356131953,1741936924117,-655.53,0.00022054,3]
[356131954,1741936924149,-598.3,0.00022054,3]
[356131955,1741936924181,-1138.98,0.00022054,3]
[356131956,1741936924218,-500.0,0.00022054,3]
[356131957,1741936924248,-640.1,0.00022054,3]
[356131958,1741936924279,-500.0,0.00022054,3]
[356131959,1741936924312,-1232.74,0.00022054,3]
[356131960,1741936924343,-500.0,0.00022054,3]
[356131961,1741936924376,-500.0,0.00022054,3]
[356131962,1741936924408,-500.0,0.00022054,3]
[356131963,1741936924439,-500.0,0.00022054,3]
[356131964,1741936924470,-500.0,0.00022054,3]
[356131965,1741936924502,-500.0,0.00022054,3]
[356131966,1741936924533,-600.89,0.00022054,3]
[356131967,1741936924566,-500.0,0.00022054,3]
[356131968,1741936924598,-500.0,0.00022054,3]
[356131969,1741936924629,-500.0,0.00022054,3]
[356131970,1741936924659,-500.0,0.00022054,3]
[356131971,1741936924722,-500.0,0.00022054,3]
[356131972,1741936924780,-942.36,0.00022054,3]
[356131973,1741936924841,-500.0,0.00022054,3]
[356131974,1741936924902,-500.0,0.00022054,3]
[356131975,1741936924963,-1002.37,0.00022054,3]
[356131976,1741936925024,-500.0,0.00022054,3]
[356131977,1741936925084,-636.71,0.00022054,3]
[356131978,1741936925144,-527.1,0.00022054,3]
[356131979,1741936925204,-507.91,0.00022054,3]
[356131980,1741936925263,-500.0,0.00022054,3]
[356131981,1741936925323,-1121.93,0.00022054,3]
[356131982,1741936925382,-738.18,0.00022054,3]
[356131983,1741936925442,-1082.27,0.00022054,3]
[356131984,1741936925502,-501.07,0.00022054,3]
[356131985,1741936925562,-500.0,0.00022054,3]
[356131986,1741936925636,-792.57,0.00022054,3]
[356131987,1741936925698,-646.68,0.00022054,3]
[356131988,1741936925757,-500.0,0.00022054,3]
[356131989,1741936925815,-1237.94,0.00022054,3]
[356131990,1741936925869,-501.06,0.00022054,3]
[356131991,1741936925927,-809.56,0.00022054,3]
[356131992,1741936925984,-1440.13,0.00022054,3]
[356131993,1741936926043,-500.0,0.00022054,3]
[356131994,1741936926100,-512.92,0.00022054,3]
[356131995,1741936926158,-574.09,0.00022054,3]
[356131996,1741936926215,-500.0,0.00022054,3]
[356131997,1741936926273,-534.47,0.00022054,3]
[356131998,1741936926332,-500.0,0.00022054,3]
[356131999,1741936926390,-500.0,0.00022054,3]
[356132000,1741936926445,-500.0,0.00022054,3]
[356132001,1741936926501,-500.0,0.00022054,3]
[356132002,1741936926559,-500.0,0.00022054,3]
[356132003,1741936926618,-500.0,0.00022054,3]
[356132004,1741936926681,-500.0,0.00022054,3]
[356132005,1741936926747,-500.0,0.00022054,3]
[356132006,1741936926804,-500.0,0.00022054,3]
[356132007,1741936926859,-608.3779409,0.00022054,3]
[356132008,1741936926915,-500.0,0.00022054,3]
[356132009,1741936926972,-500.0,0.00022054,3]
[356132010,1741936927028,-500.0,0.00022054,3]
[356132011,1741936927085,-500.0,0.00022054,3]
[356132012,1741936927142,-1070.2,0.00022054,3]
[356132013,1741936927199,-500.0,0.00022054,3]
[356132014,1741936927255,-2035.33,0.00022054,3]
[356132015,1741936927311,-1063.85,0.00022054,3]
[356132016,1741936927369,-1106.92,0.00022054,3]
[356132017,1741936927425,-500.0,0.00022054,3]
[356132018,1741936927480,-957.68,0.00022054,3]
[356132019,1741936927537,-500.0,0.00022054,3]
[356132020,1741936927593,-500.0,0.00022054,3]
[356132021,1741936927649,-500.0,0.00022054,3]
[356132022,1741936927706,-500.0,0.00022054,3]
[356132023,1741936927763,-749.54,0.00022054,3]
[356132024,1741936927824,-500.0,0.00022054,3]
[356132025,1741936927884,-500.0,0.00022054,3]
[356132026,1741936927943,-500.0,0.00022054,3]
[356132027,1741936928002,-900.62,0.00022054,3]
[356132028,1741936928061,-1183.4,0.00022054,3]
[356132029,1741936928119,-500.0,0.00022054,3]
[356132030,1741936928181,-2463.06,0.00022054,3]
[356132031,1741936928238,-500.0,0.00022054,3]
[356132032,1741936928297,-500.0,0.00022054,3]
[356132033,1741936928353,-907.67,0.00022054,3]
[356132034,1741936928406,-1751.54,0.00022054,3]
[356132035,1741936928463,-659.53,0.00022054,3]
[356132036,1741936928521,-500.0,0.00022054,3]
[356132037,1741936928583,-500.0,0.00022054,3]
[356132038,1741936928638,-500.0,0.00022054,3]
[356132039,1741936928693,-500.0,0.00022054,3]
[356132040,1741936928751,-638.1,0.00022054,3]
[356132041,1741936928808,-576.08,0.00022054,3]
[356132042,1741936928864,-500.0,0.00022054,3]
[356132043,1741936928922,-500.0,0.00022054,3]
[356132044,1741936928980,-500.0,0.00022054,3]
[356132045,1741936929039,-605.51,0.00022054,3]
[356132046,1741936929097,-500.0,0.00022054,3]
[356132047,1741936929318,-500.0,0.00022054,3]
[356132048,1741936929378,-500.0,0.00022054,3]
[356132049,1741936929435,-500.0,0.00022054,3]
[356132050,1741936929493,-500.0,0.00022054,3]
[356132051,1741936929549,-500.0,0.00022054,3]
[356132052,1741936929608,-500.0,0.00022054,3]
[356132053,1741936929666,-1270.52,0.00022054,3]
[356132054,1741936929729,-500.0,0.00022054,2]
[356132055,1741936929796,-500.0,0.00022073,2]
[356132056,1741936929854,-500.0,0.00022082,3]
[356132057,1741936929915,-500.0,0.00022082,3]
[356132058,1741936929975,-500.0,0.00022082,3]
[356132059,1741936930048,-824.92,0.00022082,3]
[356132060,1741936930110,-563.47,0.00022082,3]
[356132061,1741936930169,-500.0,0.00022082,3]
[356132062,1741936930229,-500.0,0.00022082,3]
[356132063,1741936930287,-500.0,0.00022082,3]
[356132064,1741936930346,-500.0,0.00022082,3]
[356132065,1741936930407,-682.16,0.00022082,3]
[356132066,1741936930466,-500.0,0.00022082,3]
[356132067,1741936930526,-500.0,0.00022082,3]
[356132068,1741936930586,-500.0,0.00022082,3]
[356132069,1741936930645,-510.93,0.00022082,3]
[356132070,1741936930704,-500.0,0.00022082,3]
[356132071,1741936930763,-500.0,0.00022082,3]
[356132072,1741936930824,-615.94,0.00022082,3]
[356132073,1741936930885,-409.52106841,0.00022082,3]
[356132074,1741936930945,-500.0,0.00022082,3]
[356132075,1741936931004,-500.0,0.00022082,3]
[356132076,1741936931066,-540.37,0.00022082,3]
[356132077,1741936931124,-500.0,0.00022082,3]
[356132078,1741936931184,-261.37431946,0.00022082,3]
[356132079,1741936931242,-500.0,0.00022082,3]
[356132080,1741936931300,-509.93,0.00022082,3]
[356132081,1741936931359,-596.66,0.00022082,3]
[356132082,1741936931416,-741.98,0.00022082,3]
[356132083,1741936931473,-500.0,0.00022082,3]
[356132084,1741936931531,-1220.36,0.00022082,3]
[356132085,1741936931588,-500.0,0.00022082,3]
[356132086,1741936931647,-500.0,0.00022082,3]
[356132087,1741936931705,-566.55,0.00022082,3]
[356132088,1741936931765,-500.0,0.00022082,3]
[356132089,1741936931825,-500.0,0.00022082,3]
[356132090,1741936931881,-500.0,0.00022082,3]
[356132091,1741936931938,-500.0,0.00022082,3]
[356132092,1741936931996,-614.84,0.00022082,3]
[356132093,1741936932052,-500.0,0.00022082,3]
[356132094,1741936932111,-558.63,0.00022082,3]
[356132095,1741936932167,-583.61,0.00022082,3]
[356132096,1741936932224,-500.0,0.00022082,3]
[356132097,1741936932281,-500.0,0.00022082,3]
[356132098,1741936932336,-867.64,0.00022082,3]
[356132099,1741936932394,-500.0,0.00022082,3]
[356132100,1741936932450,-500.0,0.00022082,3]
[356132101,1741936932505,-500.0,0.00022082,3]
[356132102,1741936932562,-1548.19,0.00022082,3]
[356132103,1741936932619,-1354.02,0.00022082,3]
[356132104,1741936932674,-500.0,0.00022082,3]
[356132105,1741936932734,-500.0,0.00022082,3]
[356132106,1741936932794,-500.0,0.00022082,3]
[356132107,1741936932850,-500.0,0.00022082,3]
[356132108,1741936932907,-500.0,0.00022082,3]
[356132109,1741936932964,-500.0,0.00022082,3]
[356132110,1741936933019,-500.0,0.00022082,3]
[356132111,1741936933074,-500.0,0.00022082,3]
[356132112,1741936933133,-529.42,0.00022082,3]
[356132113,1741936933191,-500.0,0.00022082,3]
[356132114,1741936933250,-575.35,0.00022082,3]
[356132115,1741936933306,-500.0,0.00022082,3]
[356132116,1741936933360,-500.0,0.00022082,3]
[356132117,1741936933414,-500.0,0.00022082,3]
[356132118,1741936933471,-500.0,0.00022082,3]
[356132119,1741936933526,-500.0,0.00022082,3]
[356132120,1741936933580,-500.0,0.00022082,3]
[356132121,1741936933637,-597.12,0.00022082,3]
[356132122,1741936933692,-648.45,0.00022082,3]
[356132123,1741936933747,-526.43422804,0.00022082,3]
[356132124,1741936933805,-627.74,0.00022082,3]
[356132125,1741936933860,-500.0,0.00022082,3]
[356132126,1741936933914,-500.0,0.00022082,3]
[356132127,1741936933972,-691.7,0.00022082,3]
[356132128,1741936934029,-500.0,0.00022082,3]
[356132129,1741936934086,-500.0,0.00022082,3]
[356132130,1741936934142,-500.0,0.00022082,3]
[356132131,1741936934200,-500.0,0.00022082,3]
[356132132,1741936934257,-507.50717919,0.00022082,3]
[356132133,1741936934314,-500.0,0.00022082,3]
[356132134,1741936934373,-500.0,0.00022082,3]
[356132135,1741936934440,-500.0,0.00022082,3]
[356132136,1741936934507,-500.0,0.00022082,3]
[356132137,1741936934567,-692.8,0.00022082,3]
[356132138,1741936934623,-820.39,0.00022082,3]
[356132139,1741936934676,-500.0,0.00022082,3]
[356132140,1741936934736,-500.0,0.00022082,3]
[356132141,1741936934791,-500.0,0.00022082,3]
[356132142,1741936934847,-500.0,0.00022082,3]
[356132143,1741936934904,-500.0,0.00022082,3]
[356132144,1741936934960,-831.57,0.00022082,3]
[356132145,1741936935018,-500.0,0.00022082,3]
[356132146,1741936935233,-500.0,0.00022082,3]
[356132147,1741936935290,-2030.3,0.00022082,3]
[356132148,1741936935347,-445.10754172,0.00022082,3]
[356132149,1741936935403,-3639.46,0.00022082,3]
[356132150,1741936935459,-1846.63,0.00022082,3]
[356132151,1741936935517,-480.852658,0.00022082,3]
[356132152,1741936935572,-1224.97,0.00022082,3]
[356132153,1741936935629,-1644.43,0.00022082,3]
[356132154,1741936935687,-875.7,0.00022082,3]
[356132155,1741936935743,-1493.72,0.00022082,3]
[356132156,1741936935803,-616.8,0.00022082,3]
[356132157,1741936935859,-500.0,0.00022082,3]
[356132158,1741936935916,-500.0,0.00022082,3]
[356132159,1741936935974,-500.0,0.00022082,3]
[356132160,1741936936032,-534.7,0.00022082,3]
[356132161,1741936936089,-528.18,0.00022082,3]
[356132162,1741936936147,-500.0,0.00022082,3]
[356132163,1741936936206,-1825.29,0.00022082,3]
[356132164,1741936936262,-500.0,0.00022082,3]
[356132165,1741936936322,-500.0,0.00022082,3]
[356132166,1741936936378,-500.0,0.00022082,3]
[356132167,1741936936435,-500.0,0.00022082,3]
[356132168,1741936936491,-500.0,0.00022082,3]
[356132169,1741936936546,-500.0,0.00022082,3]
[356132170,1741936936604,-500.0,0.00022082,3]
[356132171,1741936936661,-500.0,0.00022082,3]
[356132172,1741936936720,-1450.38,0.00022082,3]
[356132173,1741936936781,-960.85,0.00022082,3]
[356132174,1741936936838,-500.0,0.00022082,3]
[356132175,1741936936896,-500.0,0.00022082,3]
[356132176,1741936936953,-2324.14,0.00022082,3]
[356132177,1741936937010,-500.0,0.00022082,3]
[356132178,1741936937069,-500.0,0.00022082,3]
[356132179,1741936937127,-910.74,0.00022082,3]
[356132180,1741936937186,-601.73,0.00022082,3]
[356132181,1741936938452,-322.5435,0.00021559,2]
[356132182,1741936938464,-760.28539887,0.00021559,2]
[356132183,1741936938473,-239.71460113,0.00021917,3]
[356132184,1741936938484,-260.28539887,0.00021917,3]
[356132185,1741936938498,-506.94836645,0.00021917,3]
[356132186,1741936938507,-315.76020192,0.00021917,3]
[356132187,1741936938518,-184.23979808,0.00021917,3]
[356132188,1741936938527,-500.0,0.00021917,3]
[356132189,1741936938536,-436.62868019,0.00021917,3]
[356132190,1741936938552,-90.42762224,0.00021917,3]
[356132191,1741936938562,-327.89893361,0.00021917,3]
[356132192,1741936938575,-172.10106639,0.00021917,3]
[356132193,1741936938584,-327.89893361,0.00021917,3]
[356132194,1741936938595,-200.0,0.00021917,3]
[356132195,1741936938607,-500.0,0.00021917,3]
[356132196,1741936938618,-69.49106639,0.00021917,3]
[356132197,1741936938627,-441.84520505,0.00021917,3]
[356132198,1741936938638,-58.15479495,0.00021917,3]
[356132199,1741936938647,-443.50301318,0.00021917,3]
[356132200,1741936938659,-56.49698682,0.00021917,3]
[356132201,1741936938668,-443.50301318,0.00021917,3]
[356132202,1741936938679,-56.49698682,0.00021917,3]
[356132203,1741936938881,-443.50301318,0.00021944,3]
[356132204,1741936938904,-57.96903891,0.00021944,3]
[356132205,1741936938915,-442.03096109,0.00021944,3]
[356132206,1741936938928,-57.96903891,0.00021944,3]
[356132207,1741936938938,-289.93,0.00021945,3]
[356132208,1741936938948,-152.10096109,0.00021945,3]
[356132209,1741936938960,-500.0,0.00021945,3]
[356132210,1741936938972,-445.28903891,0.00021945,3]
[356132211,1741936938983,-54.71096109,0.00021945,3]
[356132212,1741936938995,-118.93903891,0.00021945,3]
[356132213,1741936939005,-383.24994253,0.00021945,3]
[356132214,1741936939018,-116.75005747,0.00021945,3]
[356132215,1741936939028,-383.24994253,0.00021972,3]
[356132216,1741936939041,-500.0,0.00021972,3]
[356132217,1741936939059,-214.14005747,0.00021972,3]
[356132218,1741936939070,-153.82663118,0.00021972,3]
[356132219,1741936939080,-132.03331135,0.00021984,2]
[356132220,1741936939161,-500.0,0.00021984,2]
[356132221,1741936939182,-500.0,0.00021984,2]
[356132222,1741936939195,-1270.52,0.00021984,2]
[356132223,1741936939208,-300.38414835,0.00021984,2]
[356132224,1741936939219,-199.61585165,0.00021999,3]
[356132225,1741936939231,-500.0,0.00021999,3]
[356132226,1741936939244,-397.77414835,0.00021999,3]
[356132227,1741936939254,-102.22585165,0.00022027,3]
[356132228,1741936939271,-500.0,0.00022027,3]
[356132229,1741936939284,-495.16414835,0.00022027,3]
[356132230,1741936939294,-4.83585165,0.00022054,3]
[356132231,1741936939307,-500.0,0.00022054,3]
[356132232,1741936939319,-500.0,0.00022054,3]
[356132233,1741936939332,-92.55414835,0.00022054,3]
[356132234,1741936939342,-407.44585165,0.00022082,3]
[356132235,1741936939354,-92.55414835,0.00022082,3]
[356132236,1741936939363,-151.0,0.00022082,7]
[356132237,1741936939374,-256.44585165,0.00022082,3]
[356132238,1741936939386,-273.84414835,0.00022082,3]
[356132239,1741936939396,-226.15585165,0.00022082,3]
[356132240,1741936939407,-500.0,0.00022082,3]
[356132241,1741936939420,-363.75414835,0.00022082,3]
[356132242,1741936939430,-136.24585165,0.00022082,3]
[356132243,1741936939442,-363.75414835,0.00022082,3]
[356132244,1741936939452,-136.24585165,0.00022082,3]
[356132245,1741936939464,-363.75414835,0.00022082,3]
[356132246,1741936939475,-136.24585165,0.00022082,3]
[356132247,1741936939487,-425.39414835,0.00022082,3]
[356132248,1741936939496,-74.60585165,0.00022082,3]
[356132249,1741936939508,-425.39414835,0.00022082,3]
[356132250,1741936939518,-74.60585165,0.00022082,3]
[356132251,1741936939530,-425.39414835,0.00022082,3]
[356132252,1741936939540,-74.60585165,0.00022082,3]
[356132253,1741936939552,-425.39414835,0.00022082,3]
[356132254,1741936939562,-74.60585165,0.00022082,3]
[356132255,1741936939573,-500.0,0.00022082,3]
[356132256,1741936939585,-38.20414835,0.00022082,3]
[356132257,1741936939594,-461.79585165,0.00022082,3]
[356132258,1741936939609,-38.20414835,0.00022082,3]
[356132259,1741936939619,-461.79585165,0.00022082,3]
[356132260,1741936939631,-38.20414835,0.00022082,3]
[356132261,1741936939642,-383.04587812,0.00022082,3]
[356132262,1741936939652,-78.74997353,0.00022082,3]
[356132263,1741936939663,-421.25002647,0.00022082,3]
[356132264,1741936939674,-78.74997353,0.00022082,3]
[356132265,1741936939691,-421.25002647,0.00022082,3]
[356132266,1741936939701,-78.74997353,0.00022082,3]
[356132267,1741936939713,-500.11339984,0.00022082,3]
[356132268,1741936939730,-500.0,0.00021917,3]
[356132269,1741936939742,-2.91129608,0.00021917,3]
[356132270,1741936939752,-35.87662663,0.00022082,3]
[356132271,1741936939763,-461.21207729,0.00022082,3]
[356132272,1741936939774,-500.0,0.00022082,3]
[356132273,1741936939793,-171.20333321,0.00021917,3]
[356132274,1741936939806,-328.79666679,0.00021917,3]
[356132275,1741936939816,-16.49792271,0.00022082,3]
[356132276,1741936939826,-173.35742224,0.00022082,3]
[356132277,1741936939838,-326.64257776,0.00022082,3]
[356132278,1741936939848,-173.35742224,0.00022082,3]
[356132279,1741936939860,-326.64257776,0.00022082,3]
[356132280,1741936939870,-175.33013011,0.00022082,3]
[356132281,1741936939881,-508.05322764,0.00022082,3]
[356132282,1741936939893,-461.20664225,0.00022082,3]
[356132283,1741936939902,-39.71254032,0.00022082,3]
[356132284,1741936939915,-460.28745968,0.00022082,3]
[356132285,1741936939925,-39.71254032,0.00022082,3]
[356132286,1741936939940,-504.99311101,0.00022082,3]
[356132287,1741936939952,-283.84434867,0.00022082,3]
[356132288,1741936939961,-343.03498633,0.00022082,3]
[356132289,1741936939973,-109.73282015,0.00022082,3]
[356132290,1741936939983,-96.66855571,0.00022082,3]
[356132291,1741936939995,-427.20144429,0.00022082,3]
[356132292,1741936940005,-72.79855571,0.00022082,3]
[356132293,1741936940017,-492.99144429,0.00022082,3]
[356132294,1741936940027,-602.5,0.00022082,3]
[356132295,1741936940041,-175.02855571,0.00022082,3]
[356132296,1741936940054,-324.97144429,0.00022082,3]
[356132297,1741936940064,-175.02855571,0.00022082,3]
[356132298,1741936940080,-324.97144429,0.00022082,3]
[356132299,1741936940090,-151.0,0.00022082,7]
[356132300,1741936940100,-24.02855571,0.00022082,3]
[356132301,1741936940112,-163.97,0.00022082,3]
[356132302,1741936940123,-312.00144429,0.00022082,3]
[356132303,1741936940133,-151.0,0.00022082,7]
[356132304,1741936940142,-465.99855571,0.00022082,3]
[356132305,1741936940154,-34.00144429,0.00022082,3]
[356132306,1741936940163,-465.99855571,0.00022082,3]
[356132307,1741936940175,-34.00144429,0.00022082,3]
[356132308,1741936940185,-592.87789071,0.00022082,3]
[356132309,1741936940197,-500.0,0.00022082,3]
[356132310,1741936940209,-457.79210929,0.00022082,3]
[356132311,1741936940219,-500.0,0.00022082,3]
[356132312,1741936940229,-312.72789071,0.00022082,3]
[356132313,1741936940240,-187.27210929,0.00022082,3]
[356132314,1741936940250,-312.72789071,0.00022082,3]
[356132315,1741936940262,-387.78210929,0.00022082,3]
[356132316,1741936940271,-112.21789071,0.00022082,3]
[356132317,1741936940284,-387.78210929,0.00022082,3]
[356132318,1741936940293,-112.21789071,0.00022082,3]
[356132319,1741936940305,-387.78210929,0.00022082,3]
[356132320,1741936940314,-24.80820418,0.00022082,3]
[356132321,1741936940326,-475.19179582,0.00022082,3]
[356132322,1741936940336,-24.80820418,0.00022082,3]
[356132323,1741936940347,-475.19179582,0.00022082,3]
[356132324,1741936940356,-500.0,0.00022082,3]
[356132325,1741936940367,-8.46820418,0.00022082,3]
[356132326,1741936940378,-500.0,0.00022082,3]
[356132327,1741936940391,-178.53179582,0.00022082,3]
[356132328,1741936940401,-321.46820418,0.00022082,3]
[356132329,1741936940414,-178.53179582,0.00022082,3]
[356132330,1741936940423,-500.0,0.00022082,3]